[Event "FIDE WCCC Open-12 2024"]
[Site "Montesilvano"]
[Date "2024.11.18"]
[Round "1.48"]
[White "Sharku, Uvejs"]
[Black "Qu, Haoming"]
[Result "0-1"]
[ECO "A41"]
[WhiteElo "1516"]
[BlackElo "1969"]
[PlyCount "86"]
[EventDate "2024.11.18"]
[EventType "swiss"]
[EventCountry "ITA"]
[TimeControl "5400+30"]

1. d4 {[%emt 0:00:16]} d6 {[%emt 0:00:17]} 2. c4 {[%emt 0:01:30]} e5 {[%emt 0:00:19]} 3. dxe5 {[%emt 0:03:12]} dxe5 {[%emt 0:00:07]} 4. Qxd8+ {[%emt 0:04:35]} Kxd8 {[%emt 0:00:39]} 5. Nc3 {[%emt 0:04:52]} c6 {[%emt 0:00:49]} 6. Bd2 {[%emt 0:03:10]} Be6 {[%emt 0:01:23]} 7. e4 {[%emt 0:06:06]} f6 {[%emt 0:01:15]} 8. O-O-O {[%emt 0:01:35]} Kc7 {[%emt 0:01:25]} 9. f4 {[%emt 0:02:44]} Nd7 {[%emt 0:01:48]} 10. Nf3 {[%emt 0:00:54]} Bd6 {[%emt 0:01:00]} 11. fxe5 {[%emt 0:01:57]} Nxe5 {[%emt 0:01:02]} 12. Nxe5 {[%emt 0:03:22]} Bxe5 {[%emt 0:00:15]} 13. Be2 {[%emt 0:03:50]} Ne7 {[%emt 0:02:40]} 14. g3 {[%emt 0:04:43]} b6 {[%emt 0:05:51]} 15. Bf4 {[%emt 0:04:36]} Ng6 {[%emt 0:01:33]} 16. Bxe5+ {[%emt 0:01:07]} Nxe5 {[%emt 0:00:36]} 17. b3 {[%emt 0:00:19]} Rhe8 {[%emt 0:01:03]} 18. Rd2 {[%emt 0:01:26]} Rad8 {[%emt 0:02:44]} 19. Rhd1 {[%emt 0:01:00]} Rxd2 {[%emt 0:01:02]} 20. Rxd2 {[%emt 0:00:06]} Bf7 {[%emt 0:03:56]} 21. Rd1 {[%emt 0:02:33]} Bg6 {[%emt 0:03:09]} 22. Re1 {[%emt 0:06:02]} Nd7 {[%emt 0:05:06]} 23. Bf3 {[%emt 0:01:26]} Nc5 {[%emt 0:02:07]} 24. Re3 {[%emt 0:04:08]} f5 {[%emt 0:00:50]} 25. e5 {[%emt 0:03:55]} Rxe5 {[%emt 0:01:44]} 26. Kd2 {[%emt 0:00:57]} Ne4+ {[%emt 0:03:32]} 27. Bxe4 {[%emt 0:03:07]} fxe4 {[%emt 0:01:51]} 28. h3 {[%emt 0:04:28]} Re7 {[%emt 0:02:01]} 29. Ke2 {[%emt 0:01:29]} Kd6 {[%emt 0:00:40]} 30. Kd2 {[%emt 0:01:00]} Ke5 {[%emt 0:01:45]} 31. Ke2 {[%emt 0:00:11]} Bh5+ {[%emt 0:02:23]} 32. g4 {[%emt 0:03:11]} Bg6 {[%emt 0:00:55]} 33. Ke1 {[%emt 0:00:09]} Rd7 {[%emt 0:01:43]} 34. Ke2 {[%emt 0:01:34]} h5 {[%emt 0:00:57]} 35. Ke1 {[%emt 0:00:53]} hxg4 {[%emt 0:00:58]} 36. hxg4 {[%emt 0:00:06]} Kf4 {[%emt 0:00:09]} 37. Ke2 {[%emt 0:22:31]} Rd4 {[%emt 0:01:16]} 38. Kf2 {[%emt 0:00:00]} Rd2+ {[%emt 0:02:47]} 39. Ne2+ {[%emt 0:00:00]} Kxg4 {[%emt 0:02:25]} 40. Rg3+ {[%emt 0:00:00]} Kf5 {[%emt 0:01:58]} 41. Ke1 {[%emt 0:00:00]} Rxa2 {[%emt 0:00:40]} 42. Nd4+ {[%emt 0:00:00]} Kf6 {[%emt 0:00:05]} 43. Nxc6 {[%emt 0:00:00]} Bh5 {[%emt 0:05:29]} 0-1

[Event "FIDE WCCC Open-12 2024"]
[Site "Montesilvano"]
[Date "2024.11.18"]
[Round "1.49"]
[White "Sun, Kevin"]
[Black "Lenoks, Martin Jr."]
[Result "1-0"]
[ECO "B13"]
[WhiteElo "1966"]
[BlackElo "1514"]
[PlyCount "133"]
[EventDate "2024.11.18"]
[EventType "swiss"]
[EventCountry "ITA"]
[TimeControl "5400+30"]

1. e4 {[%emt 0:00:02]} c6 {[%emt 0:00:05]} 2. d4 {[%emt 0:00:04]} d5 {[%emt 0:00:05]} 3. exd5 {[%emt 0:00:04]} cxd5 {[%emt 0:00:09]} 4. Bd3 {[%emt 0:00:04]} Nf6 {[%emt 0:00:25]} 5. c3 {[%emt 0:00:08]} Nc6 {[%emt 0:00:44]} 6. Bf4 {[%emt 0:00:10]} e6 {[%emt 0:02:56]} 7. Nf3 {[%emt 0:00:36]} Bd6 {[%emt 0:01:16]} 8. Bxd6 {[%emt 0:00:19]} Qxd6 {[%emt 0:00:09]} 9. O-O {[%emt 0:00:05]} O-O {[%emt 0:00:13]} 10. Re1 {[%emt 0:00:14]} Re8 {[%emt 0:00:35]} 11. Ne5 {[%emt 0:00:31]} Bd7 {[%emt 0:02:29]} 12. Nd2 {[%emt 0:01:02]} Qc7 {[%emt 0:01:22]} 13. Ndf3 {[%emt 0:00:37]} h6 {[%emt 0:03:23]} 14. Qd2 {[%emt 0:05:59]} a6 {[%emt 0:01:38]} 15. Nxc6 {[%emt 0:02:57]} Bxc6 {[%emt 0:00:35]} 16. Ne5 {[%emt 0:00:06]} Nd7 {[%emt 0:01:53]} 17. Re3 {[%emt 0:00:59]} Nxe5 {[%emt 0:00:31]} 18. dxe5 {[%emt 0:00:16]} Red8 {[%emt 0:02:45]} 19. Rae1 {[%emt 0:00:41]} d4 {[%emt 0:01:17]} 20. cxd4 {[%emt 0:00:14]} Rxd4 {[%emt 0:00:07]} 21. Bh7+ {[%emt 0:00:08]} Kxh7 {[%emt 0:00:38]} 22. Qxd4 {[%emt 0:00:04]} Rd8 {[%emt 0:00:52]} 23. Qg4 {[%emt 0:00:26]} Qa5 {[%emt 0:02:35]} 24. h3 {[%emt 0:01:11]} Qxa2 {[%emt 0:00:39]} 25. Rg3 {[%emt 0:00:58]} g6 {[%emt 0:00:40]} 26. Qf4 {[%emt 0:00:28]} Rd7 {[%emt 0:00:45]} 27. Qb4 {[%emt 0:04:39]} Qd5 {[%emt 0:01:53]} 28. Rf3 {[%emt 0:08:55]} a5 {[%emt 0:06:14]} 29. Qf8 {[%emt 0:00:34]} f6 {[%emt 0:04:11]} 30. exf6 {[%emt 0:01:12]} Qd2 {[%emt 0:02:31]} 31. Rfe3 {[%emt 0:00:14]} Qd6 {[%emt 0:00:28]} 32. Qxd6 {[%emt 0:00:14]} Rxd6 {[%emt 0:00:04]} 33. Rxe6 {[%emt 0:00:05]} Rxe6 {[%emt 0:00:24]} 34. Rxe6 {[%emt 0:00:06]} Kg8 {[%emt 0:00:07]} 35. Re7 {[%emt 0:00:13]} Kf8 {[%emt 0:00:21]} 36. Rg7 {[%emt 0:00:37]} Be4 {[%emt 0:00:32]} 37. f3 {[%emt 0:00:06]} Bd3 {[%emt 0:00:32]} 38. Rxb7 {[%emt 0:00:07]} Bc4 {[%emt 0:00:34]} 39. Kf2 {[%emt 0:00:06]} Bd5 {[%emt 0:00:33]} 40. Rb5 {[%emt 0:00:09]} Be6 {[%emt 0:00:08]} 41. Rxa5 {[%emt 0:00:06]} Kf7 {[%emt 0:00:54]} 42. Ra7+ {[%emt 0:00:08]} Kxf6 {[%emt 0:00:08]} 43. Ra6 {[%emt 0:00:02]} Kf5 {[%emt 0:00:18]} 44. g4+ {[%emt 0:00:06]} Kf6 {[%emt 0:00:09]} 45. Ke3 {[%emt 0:00:06]} Ke5 {[%emt 0:00:15]} 46. Rxe6+ {[%emt 0:00:07]} Kxe6 {[%emt 0:00:19]} 47. Ke4 {[%emt 0:00:03]} g5 {[%emt 0:00:21]} 48. b4 {[%emt 0:00:04]} Kd6 {[%emt 0:00:08]} 49. Kf5 {[%emt 0:00:04]} Kc6 {[%emt 0:00:09]} 50. Kg6 {[%emt 0:00:03]} Kb5 {[%emt 1:05:31]} 51. Kxh6 {[%emt 0:00:05]} Kxb4 {[%emt 0:00:00]} 52. Kxg5 {[%emt 0:00:03]} Kc5 {[%emt 0:00:00]} 53. h4 {[%emt 0:00:04]} Kd6 {[%emt 0:00:00]} 54. Kg6 {[%emt 0:00:07]} Ke7 {[%emt 0:00:00]} 55. Kg7 {[%emt 0:00:03]} Ke6 {[%emt 0:00:00]} 56. f4 {[%emt 0:00:04]} Ke7 {[%emt 0:00:00]} 57. f5 {[%emt 0:00:04]} Ke8 {[%emt 0:00:00]} 58. f6 {[%emt 0:00:05]} Kd7 {[%emt 0:00:00]} 59. f7 {[%emt 0:00:03]} Ke6 {[%emt 0:00:00]} 60. f8=N+ {[%emt 0:00:08]} Ke5 {[%emt 0:00:00]} 61. h5 {[%emt 0:00:02]} Kf4 {[%emt 0:00:00]} 62. h6 {[%emt 0:00:04]} Kxg4 {[%emt 0:00:00]} 63. h7 {[%emt 0:00:05]} Kg5 {[%emt 0:00:00]} 64. h8=Q {[%emt 0:00:03]} Kf5 {[%emt 0:00:00]} 65. Qh5+ {[%emt 0:00:05]} Kf4 {[%emt 0:00:00]} 66. Ng6+ {[%emt 0:00:02]} Ke4 {[%emt 0:00:00]} 67. Qe5+ {[%emt 0:17:48] Kf4} 1-0

[Event "FIDE WCCC Open-12 2024"]
[Site "Montesilvano"]
[Date "2024.11.18"]
[Round "1.50"]
[White "Mohd Firdaus, Firast Haiqal"]
[Black "El Zein, Bassam"]
[Result "0-1"]
[ECO "D02"]
[WhiteElo "1514"]
[BlackElo "1947"]
[PlyCount "42"]
[EventDate "2024.11.18"]
[EventType "swiss"]
[EventCountry "ITA"]
[TimeControl "5400+30"]

1. Nf3 {[%emt 0:00:13]} d5 {[%emt 0:00:07]} 2. d4 {[%emt 0:00:13]} Nc6 {[%emt 0:00:06]} 3. Bf4 {[%emt 0:00:49]} Bf5 {[%emt 0:00:41]} 4. c3 {[%emt 0:00:35]} Nf6 {[%emt 0:00:18]} 5. e3 {[%emt 0:00:42]} e6 {[%emt 0:00:31]} 6. Bd3 {[%emt 0:00:43]} Ne4 {[%emt 0:01:02]} 7. Bxe4 {[%emt 0:03:53]} dxe4 {[%emt 0:00:23]} 8. Ne5 {[%emt 0:01:29]} Nxe5 {[%emt 0:00:15]} 9. Bxe5 {[%emt 0:00:27]} f6 {[%emt 0:00:41]} 10. Bg3 {[%emt 0:02:06]} Qd7 {[%emt 0:00:43]} 11. Nd2 {[%emt 0:06:25]} O-O-O {[%emt 0:00:25]} 12. a4 {[%emt 0:02:20]} g5 {[%emt 0:00:22]} 13. h4 {[%emt 0:01:25]} gxh4 {[%emt 0:00:13]} 14. Bxh4 {[%emt 0:00:22]} Rg8 {[%emt 0:00:42]} 15. Bxf6 {[%emt 0:01:28]} Be7 {[%emt 0:00:02]} 16. Bxe7 {[%emt 0:00:21]} Qxe7 {[%emt 0:00:00]} 17. Rh2 {[%emt 0:01:49]} Qd6 {[%emt 0:01:44]} 18. Nf1 {[%emt 0:00:59]} Bg4 {[%emt 0:01:44]} 19. Qc2 {[%emt 0:00:44]} e5 {[%emt 0:01:32]} 20. Qxe4 {[%emt 0:03:26]} exd4 {[%emt 0:00:32]} 21. Qxd4 {[%emt 0:00:26]} Qa6 {[%emt 0:00:17]} 0-1

[Event "FIDE WCCC Open-12 2024"]
[Site "Montesilvano"]
[Date "2024.11.18"]
[Round "1.51"]
[White "Gao, Heye"]
[Black "Pennacchia, Domenico"]
[Result "1-0"]
[ECO "B38"]
[WhiteElo "1933"]
[BlackElo "1510"]
[PlyCount "57"]
[EventDate "2024.11.18"]
[EventType "swiss"]
[EventCountry "ITA"]
[TimeControl "5400+30"]

1. e4 {[%emt 0:00:11]} c5 {[%emt 0:00:12]} 2. Nf3 {[%emt 0:00:41]} d6 {[%emt 0:00:24]} 3. d4 {[%emt 0:00:42]} cxd4 {[%emt 0:00:37]} 4. Nxd4 {[%emt 0:00:40]} Nf6 {[%emt 0:00:53]} 5. f3 {[%emt 0:02:07]} g6 {[%emt 0:02:30]} 6. c4 {[%emt 0:01:00]} Bg7 {[%emt 0:00:19]} 7. Nc3 {[%emt 0:00:53]} O-O {[%emt 0:00:51]} 8. Be3 {[%emt 0:01:03]} Nc6 {[%emt 0:02:03]} 9. Qd2 {[%emt 0:01:19]} a6 {[%emt 0:01:06]} 10. Be2 {[%emt 0:01:09]} Qc7 {[%emt 0:00:28]} 11. O-O {[%emt 0:01:08]} Bd7 {[%emt 0:01:42]} 12. Rac1 {[%emt 0:01:37]} Rac8 {[%emt 0:02:18]} 13. b3 {[%emt 0:02:49]} Ne5 {[%emt 0:03:26]} 14. Rfd1 {[%emt 0:01:49]} Rfe8 {[%emt 0:05:46]} 15. h3 {[%emt 0:03:19]} Nc6 {[%emt 0:11:02]} 16. Nd5 {[%emt 0:02:36]} Qb8 {[%emt 0:00:35]} 17. Nb6 {[%emt 0:00:58]} Nxd4 {[%emt 0:00:59]} 18. Bxd4 {[%emt 0:00:50]} Be6 {[%emt 0:01:35]} 19. Nxc8 {[%emt 0:00:40]} Rxc8 {[%emt 0:00:11]} 20. Qe3 {[%emt 0:02:19]} Qc7 {[%emt 0:01:18]} 21. c5 {[%emt 0:00:59]} Qd7 {[%emt 0:00:46]} 22. cxd6 {[%emt 0:00:23]} Rxc1 {[%emt 0:00:14]} 23. Rxc1 {[%emt 0:00:38]} Qxd6 {[%emt 0:00:19]} 24. e5 {[%emt 0:00:27]} Nd5 {[%emt 0:01:01]} 25. exd6 {[%emt 0:00:13]} Nxe3 {[%emt 0:00:16]} 26. Bxe3 {[%emt 0:01:19]} exd6 {[%emt 0:00:06]} 27. Rc7 {[%emt 0:00:12]} Bd5 {[%emt 0:00:19]} 28. Rc8+ {[%emt 0:00:11]} Bf8 {[%emt 0:00:16]} 29. Bh6 {[%emt 0:00:08]} 1-0

[Event "FIDE WCCC Open-12 2024"]
[Site "Montesilvano"]
[Date "2024.11.18"]
[Round "1.52"]
[White "Kim, Derek Minwoo"]
[Black "Zhandos, Akarys"]
[Result "0-1"]
[ECO "B72"]
[WhiteElo "1699"]
[BlackElo "1932"]
[PlyCount "84"]
[EventDate "2024.11.18"]
[EventType "swiss"]
[EventCountry "ITA"]
[TimeControl "5400+30"]

1. e4 {[%emt 0:00:07]} c5 {[%emt 0:00:14]} 2. Nf3 {[%emt 0:00:21]} d6 {[%emt 0:00:05]} 3. d4 {[%emt 0:00:42]} cxd4 {[%emt 0:00:08]} 4. Nxd4 {[%emt 0:00:26]} Nf6 {[%emt 0:00:09]} 5. Nc3 {[%emt 0:00:59]} g6 {[%emt 0:00:13]} 6. Be3 {[%emt 0:00:50]} Bg7 {[%emt 0:00:12]} 7. Bc4 {[%emt 0:00:36]} Ng4 {[%emt 0:00:04]} 8. Bb5+ {[%emt 0:02:30]} Kf8 {[%emt 0:00:01]} 9. Qf3 {[%emt 0:03:12]} Nc6 {[%emt 0:12:52]} 10. Nxc6 {[%emt 1:25:47]} bxc6 {[%emt 0:00:02]} 11. Bxc6 {[%emt 0:00:30]} Ne5 {[%emt 0:00:07]} 12. Bxa8 {[%emt 0:00:00]} Nxf3+ {[%emt 0:00:01]} 13. gxf3 {[%emt 0:00:00]} Be6 {[%emt 0:00:48]} 14. Bd5 {[%emt 0:00:00]} Bxc3+ {[%emt 0:01:29]} 15. bxc3 {[%emt 0:00:00]} Bxd5 {[%emt 0:00:01]} 16. exd5 {[%emt 0:00:00]} Qa5 {[%emt 0:00:03]} 17. Bd4 {[%emt 0:00:00]} f6 {[%emt 0:00:03]} 18. Ke2 {[%emt 0:00:00]} Qxd5 {[%emt 0:00:14]} 19. Rhb1 {[%emt 0:00:00]} Kf7 {[%emt 0:00:37]} 20. Rb3 {[%emt 0:00:00]} h5 {[%emt 0:01:27]} 21. Rab1 {[%emt 0:00:00]} Qe6+ {[%emt 0:00:28]} 22. Be3 {[%emt 0:00:00]} a5 {[%emt 0:01:07]} 23. a3 {[%emt 0:00:00]} h4 {[%emt 0:00:32]} 24. Rd1 {[%emt 0:00:00]} Rc8 {[%emt 0:02:00]} 25. Rd4 {[%emt 0:00:00]} Qf5 {[%emt 0:00:13]} 26. Kd2 {[%emt 0:00:00]} g5 {[%emt 0:02:44]} 27. Rb7 {[%emt 0:00:00]} Qxf3 {[%emt 0:00:32]} 28. Ra7 {[%emt 0:00:00]} Qc6 {[%emt 0:01:24]} 29. Rd3 {[%emt 0:00:00]} g4 {[%emt 0:00:13]} 30. Rxa5 {[%emt 0:00:00]} Qg2 {[%emt 0:00:25]} 31. Ra4 {[%emt 0:00:00]} f5 {[%emt 0:00:39]} 32. Ra5 {[%emt 0:00:00]} Qxh2 {[%emt 0:01:29]} 33. Rxf5+ {[%emt 0:00:00]} Ke6 {[%emt 0:00:01]} 34. Rf4 {[%emt 0:00:00]} g3 {[%emt 0:00:25]} 35. Kc1 {[%emt 0:00:00]} g2 {[%emt 0:00:07]} 36. f3 {[%emt 0:00:00]} Qxf4 {[%emt 0:00:19]} 37. Bxf4 {[%emt 0:00:00]} g1=Q+ {[%emt 0:00:08]} 38. Kd2 {[%emt 0:00:00]} h3 {[%emt 0:00:12]} 39. Re3+ {[%emt 0:00:00]} Kf5 {[%emt 0:00:04]} 40. Re4 {[%emt 0:00:00]} Qf2+ {[%emt 0:00:06]} 41. Kd3 {[%emt 0:00:00]} Qxf3+ {[%emt 0:00:03]} 42. Re3 {[%emt 0:00:00]} Qd1# {[%emt 1:19:29] Kd4 Ke5#} 0-1

[Event "FIDE WCCC Open-12 2024"]
[Site "Montesilvano"]
[Date "2024.11.18"]
[Round "1.53"]
[White "Zhang, Haoxuan"]
[Black "Sobirov, Feruzbek"]
[Result "1-0"]
[ECO "D32"]
[WhiteElo "1951"]
[BlackElo "1487"]
[PlyCount "76"]
[EventDate "2024.11.18"]
[EventType "swiss"]
[EventCountry "ITA"]
[TimeControl "5400+30"]

1. d4 {[%emt 0:00:10]} Nf6 {[%emt 0:00:27]} 2. c4 {[%emt 0:00:25]} e6 {[%emt 0:01:15]} 3. Nf3 {[%emt 0:00:40]} d5 {[%emt 0:01:14]} 4. Nc3 {[%emt 0:00:40]} c5 {[%emt 0:01:18]} 5. cxd5 {[%emt 0:02:43]} exd5 {[%emt 0:02:58]} 6. Bg5 {[%emt 0:02:14]} Be6 {[%emt 0:02:58]} 7. e3 {[%emt 0:00:36]} Nc6 {[%emt 0:00:59]} 8. Be2 {[%emt 0:01:35]} cxd4 {[%emt 0:00:57]} 9. Nxd4 {[%emt 0:00:11]} Be7 {[%emt 0:02:36]} 10. O-O {[%emt 0:01:52]} O-O {[%emt 0:01:07]} 11. Rc1 {[%emt 0:01:32]} Rc8 {[%emt 0:04:32]} 12. Bd3 {[%emt 0:23:50]} Nxd4 {[%emt 0:06:05]} 13. exd4 {[%emt 0:00:15]} Qb6 {[%emt 0:00:23]} 14. Qd2 {[%emt 0:00:56]} h6 {[%emt 0:02:14]} 15. Bf4 {[%emt 0:02:29]} Rfd8 {[%emt 0:07:53]} 16. Na4 {[%emt 0:04:06]} Qb4 {[%emt 0:00:55]} 17. Qxb4 {[%emt 0:00:05]} Bxb4 {[%emt 0:00:20]} 18. a3 {[%emt 0:00:26]} Be7 {[%emt 0:00:58]} 19. Rce1 {[%emt 0:04:34]} Bd6 {[%emt 0:01:21]} 20. Bxd6 {[%emt 0:03:58]} Rxd6 {[%emt 0:00:09]} 21. Re2 {[%emt 0:01:37]} Nd7 {[%emt 0:02:26]} 22. Rfe1 {[%emt 0:00:28]} a6 {[%emt 0:01:13]} 23. b4 {[%emt 0:01:17]} Rdc6 {[%emt 0:02:30]} 24. Nc5 {[%emt 0:01:37]} Nxc5 {[%emt 0:00:30]} 25. bxc5 {[%emt 0:00:10]} Ra8 {[%emt 0:01:15]} 26. Rb2 {[%emt 0:00:12]} Ra7 {[%emt 0:01:49]} 27. f4 {[%emt 0:03:32]} g6 {[%emt 0:00:23]} 28. Kf2 {[%emt 0:00:20]} Kg7 {[%emt 0:00:53]} 29. Kf3 {[%emt 0:01:15]} h5 {[%emt 0:00:51]} 30. h3 {[%emt 0:00:28]} Kf6 {[%emt 0:00:21]} 31. g4 {[%emt 0:00:15]} b6 {[%emt 0:03:51]} 32. Rxb6 {[%emt 0:01:50]} Rxb6 {[%emt 0:00:09]} 33. cxb6 {[%emt 0:00:04]} Rb7 {[%emt 0:00:08]} 34. Rb1 {[%emt 0:00:06]} a5 {[%emt 0:00:31]} 35. Ba6 {[%emt 0:00:09]} Rb8 {[%emt 0:00:07]} 36. b7 {[%emt 0:00:06]} Ke7 {[%emt 0:00:25]} 37. Rc1 {[%emt 0:00:08]} Kd6 {[%emt 0:00:26]} 38. Rc8 {[%emt 0:00:22]} Ra8 {[%emt 0:01:47]} 1-0

[Event "FIDE WCCC Open-12 2024"]
[Site "Montesilvano"]
[Date "2024.11.18"]
[Round "1.54"]
[White "Son, Juwon"]
[Black "Dos Santos, Leonardo Lopes"]
[Result "1/2-1/2"]
[ECO "C30"]
[WhiteElo "1448"]
[BlackElo "1930"]
[PlyCount "43"]
[EventDate "2024.11.18"]
[EventType "swiss"]
[EventCountry "ITA"]
[TimeControl "5400+30"]

1. e4 {[%emt 0:00:01]} e5 {[%emt 0:00:30]} 2. Nc3 {[%emt 0:00:05]} Nc6 {[%emt 0:00:14]} 3. f4 {[%emt 0:00:04]} d6 {[%emt 0:01:43]} 4. Nf3 {[%emt 0:00:12]} Nf6 {[%emt 0:01:12]} 5. Bb5 {[%emt 0:00:24]} Bg4 {[%emt 0:04:09]} 6. h3 {[%emt 0:03:33]} Bxf3 {[%emt 0:00:15]} 7. Qxf3 {[%emt 0:00:26]} a6 {[%emt 0:02:33]} 8. Bxc6+ {[%emt 0:00:21]} bxc6 {[%emt 0:00:45]} 9. d3 {[%emt 0:00:11]} Rb8 {[%emt 0:01:58]} 10. Rb1 {[%emt 0:04:17]} Be7 {[%emt 0:04:53]} 11. O-O {[%emt 0:04:04]} O-O {[%emt 0:01:05]} 12. Be3 {[%emt 0:04:17]} Re8 {[%emt 0:18:45]} 13. g4 {[%emt 0:02:00]} exf4 {[%emt 0:03:15]} 14. Qxf4 {[%emt 0:03:00]} Rf8 {[%emt 0:02:10]} 15. Qf3 {[%emt 0:04:52]} c5 {[%emt 0:06:11]} 16. b3 {[%emt 0:10:08]} h6 {[%emt 0:09:23]} 17. g5 {[%emt 0:14:23]} hxg5 {[%emt 0:00:54]} 18. Bxg5 {[%emt 0:01:02]} c6 {[%emt 0:04:20]} 19. Qg2 {[%emt 0:07:56]} Nd7 {[%emt 0:01:46]} 20. Rf5 {[%emt 0:02:46]} Ne5 {[%emt 0:04:46]} 21. Rbf1 {[%emt 0:02:33]} f6 {[%emt 0:07:06]} 22. Bf4 {[%emt 0:34:55]} 1/2-1/2

[Event "FIDE WCCC Open-12 2024"]
[Site "Montesilvano"]
[Date "2024.11.18"]
[Round "1.55"]
[White "Rueda Ahumada, Gabriel Omar"]
[Black "Mamarasulov, Husan"]
[Result "1-0"]
[ECO "A33"]
[WhiteElo "1928"]
[BlackElo "1407"]
[PlyCount "103"]
[EventDate "2024.11.18"]
[EventType "swiss"]
[EventCountry "ITA"]
[TimeControl "5400+30"]

1. c4 {[%emt 0:00:25]} e6 {[%emt 0:02:24]} 2. Nc3 {[%emt 0:01:23]} c5 {[%emt 0:02:41]} 3. e4 {[%emt 0:05:25]} Nc6 {[%emt 0:02:05]} 4. g3 {[%emt 0:06:18]} Nf6 {[%emt 0:02:31]} 5. Bg2 {[%emt 0:00:09]} d6 {[%emt 0:01:44]} 6. Nge2 {[%emt 0:00:08]} Be7 {[%emt 0:07:28]} 7. O-O {[%emt 0:03:30]} O-O {[%emt 0:02:50]} 8. d4 {[%emt 0:02:26]} cxd4 {[%emt 0:01:46]} 9. Nxd4 {[%emt 0:00:13]} Nxd4 {[%emt 0:05:17]} 10. Qxd4 {[%emt 0:00:13]} e5 {[%emt 0:00:17]} 11. Qd3 {[%emt 0:00:06]} Be6 {[%emt 0:05:33]} 12. b3 {[%emt 0:03:32]} Qd7 {[%emt 0:00:49]} 13. f4 {[%emt 0:10:56]} Bh3 {[%emt 0:01:51]} 14. f5 {[%emt 0:00:32]} Bxg2 {[%emt 0:07:03]} 15. Kxg2 {[%emt 0:01:38]} Rfd8 {[%emt 0:04:33]} 16. h3 {[%emt 0:07:10]} h6 {[%emt 0:02:38]} 17. g4 {[%emt 0:00:23]} Nh7 {[%emt 0:05:17]} 18. Be3 {[%emt 0:03:02]} f6 {[%emt 0:07:30]} 19. Qd5+ {[%emt 0:04:51]} Kh8 {[%emt 0:01:15]} 20. Rad1 {[%emt 0:02:54]} Qc6 {[%emt 0:06:54]} 21. Rd2 {[%emt 0:02:15]} a6 {[%emt 0:05:26]} 22. Rfd1 {[%emt 0:06:17]} Rab8 {[%emt 0:06:29]} 23. a4 {[%emt 0:02:03]} Qe8 {[%emt 0:00:34]} 24. Qa5 {[%emt 0:03:09]} g5 {[%emt 0:01:12]} 25. Nd5 {[%emt 0:01:21]} Bf8 {[%emt 0:04:58]} 26. Bb6 {[%emt 0:06:11]} h5 {[%emt 0:01:51]} 27. Bxd8 {[%emt 0:03:57]} Rxd8 {[%emt 0:00:06]} 28. Rd3 {[%emt 0:00:18]} Bh6 {[%emt 0:04:05]} 29. R1d2 {[%emt 0:00:13]} Bf8 {[%emt 0:02:18]} 30. c5 {[%emt 0:00:38]} Kg8 {[%emt 0:02:56]} 31. cxd6 {[%emt 0:00:14]} Rxd6 {[%emt 0:00:45]} 32. Ne7+ {[%emt 0:02:42]} Qxe7 {[%emt 0:01:50]} 33. Rxd6 {[%emt 0:00:10]} Qf7 {[%emt 0:00:21]} 34. Qd5 {[%emt 0:00:28]} Bxd6 {[%emt 0:00:28]} 35. Qxf7+ {[%emt 0:00:09]} Kxf7 {[%emt 0:00:05]} 36. Rxd6 {[%emt 0:00:13]} hxg4 {[%emt 0:00:37]} 37. hxg4 {[%emt 0:00:07]} Nf8 {[%emt 0:00:05]} 38. Rb6 {[%emt 0:00:06]} Ke7 {[%emt 0:01:42]} 39. Rxb7+ {[%emt 0:00:08]} Nd7 {[%emt 0:00:05]} 40. Kf2 {[%emt 0:01:00]} Kd6 {[%emt 0:00:15]} 41. b4 {[%emt 0:00:17]} Kc6 {[%emt 0:00:17]} 42. Rxd7 {[%emt 0:00:12]} Kxd7 {[%emt 0:00:12]} 43. Ke2 {[%emt 0:00:07]} Kc6 {[%emt 0:00:06]} 44. Kd3 {[%emt 0:00:09]} Kd6 {[%emt 0:00:36]} 45. Kc4 {[%emt 0:00:06]} Kc6 {[%emt 0:00:48]} 46. a5 {[%emt 0:00:07]} Kd6 {[%emt 0:01:21]} 47. b5 {[%emt 0:00:07]} axb5+ {[%emt 0:00:06]} 48. Kxb5 {[%emt 0:00:12]} Kc7 {[%emt 0:00:05]} 49. Kc5 {[%emt 0:00:16]} Kb7 {[%emt 0:00:05]} 50. Kd6 {[%emt 0:00:07]} Ka6 {[%emt 0:00:35]} 51. Ke6 {[%emt 0:00:07]} Kxa5 {[%emt 0:00:09]} 52. Kxf6 {[%emt 0:27:50]} 1-0

[Event "FIDE WCCC Open-12 2024"]
[Site "Montesilvano"]
[Date "2024.11.18"]
[Round "1.64"]
[White "Lin, Alex Y"]
[Black "Tona, Leonardo"]
[Result "0-1"]
[ECO "A20"]
[WhiteElo "1943"]
[BlackElo "1906"]
[PlyCount "62"]
[EventDate "2024.11.18"]
[EventType "swiss"]
[EventCountry "ITA"]
[TimeControl "5400+30"]

1. c4 {[%emt 0:00:02]} e5 {[%emt 0:00:10]} 2. a3 {[%emt 0:00:07]} Nf6 {[%emt 0:00:12]} 3. d3 {[%emt 0:00:11]} g6 {[%emt 0:00:20]} 4. b3 {[%emt 0:00:08]} Bg7 {[%emt 0:00:07]} 5. Bb2 {[%emt 0:00:02]} d6 {[%emt 0:00:11]} 6. Nd2 {[%emt 0:00:29]} O-O {[%emt 0:03:57]} 7. e3 {[%emt 0:00:03]} Be6 {[%emt 0:00:47]} 8. Ngf3 {[%emt 0:00:34]} Nfd7 {[%emt 0:00:37]} 9. Be2 {[%emt 0:00:18]} f5 {[%emt 0:00:07]} 10. e4 {[%emt 1:33:36]} f4 {[%emt 0:05:32]} 11. O-O {[%emt 0:00:00]} g5 {[%emt 0:01:51]} 12. h3 {[%emt 0:00:00]} h6 {[%emt 0:04:12]} 13. Re1 {[%emt 0:00:00]} Nc6 {[%emt 0:02:56]} 14. Rc1 {[%emt 0:00:00]} Bf7 {[%emt 0:01:32]} 15. Qc2 {[%emt 0:00:00]} h5 {[%emt 0:00:38]} 16. g4 {[%emt 0:00:00]} fxg3 {[%emt 0:00:42]} 17. fxg3 {[%emt 0:00:00]} Be6 {[%emt 0:00:18]} 18. Bf1 {[%emt 0:00:00]} g4 {[%emt 0:01:36]} 19. hxg4 {[%emt 0:00:00]} Bxg4 {[%emt 0:00:23]} 20. Nh2 {[%emt 0:00:00]} Qg5 {[%emt 0:01:27]} 21. Nxg4 {[%emt 0:00:00]} Qxg4 {[%emt 0:00:17]} 22. Kg2 {[%emt 0:00:00]} h4 {[%emt 0:00:37]} 23. Re3 {[%emt 0:00:00]} Bh6 {[%emt 0:00:19]} 24. Rf3 {[%emt 0:00:00]} Rxf3 {[%emt 0:00:05]} 25. Nxf3 {[%emt 0:00:00]} Qxg3+ {[%emt 0:00:07]} 26. Kh1 {[%emt 0:00:00]} Bxc1 {[%emt 0:00:33]} 27. Bxc1 {[%emt 0:00:00]} Qxf3+ {[%emt 0:00:15]} 28. Qg2+ {[%emt 0:00:00]} Qxg2+ {[%emt 0:00:52]} 29. Bxg2 {[%emt 0:00:00]} Rf8 {[%emt 0:00:21]} 30. Bh3 {[%emt 0:00:00]} Nd4 {[%emt 0:00:31]} 31. Bxd7 {[%emt 0:00:00]} Rf1+ {[%emt 0:00:05]} 0-1